bitfinex-derivatives/quotes_BNBF0:USTF0_20250509
["timestamp","ask_amount","ask_price","bid_price","bid_amount"]
[1746810665563,0.27417874,635.27,634.02,0.315]
[1746810666157,0.26512995,635.26,634.02,0.315]
[1746810668558,0.27418847,635.25,634.02,0.315]
[1746810669258,0.26512995,635.24,634.02,0.315]
[1746810672762,0.27418847,635.25,634.02,0.315]
[1746810673062,0.26521136,635.24,634.02,0.315]
[1746810674456,0.27418414,635.23,634.02,0.315]
[1746810674962,0.26521136,635.22,634.02,0.315]
[1746810675756,0.26521136,635.22,634.03,0.31544248]
[1746810677463,0.26521136,635.29,634.03,0.31544248]
[1746810677662,0.2741701,635.21,634.03,0.31544248]
[1746810677858,0.26521136,635.29,634.03,0.31544248]
[1746810678863,0.26521136,635.29,634.03,0.73644248]
[1746810679165,0.27416902,635.28,634.03,0.73644248]
[1746810679766,0.26521136,635.27,634.03,0.73644248]
[1746810680464,0.27416686,635.26,634.03,0.73644248]
[1746810680865,0.26521136,635.25,634.03,0.73644248]
[1746810681365,0.27416686,635.26,634.03,0.73644248]
[1746810681766,0.26519924,635.25,634.03,0.73644248]
[1746810683466,0.2741863,635.24,634.03,0.73644248]
[1746810683965,0.26519924,635.23,634.03,0.73644248]
[1746810685367,0.26519924,635.23,634.03,1.05144248]
[1746810686466,0.2741863,635.22,634.03,1.05144248]
[1746810686870,0.26519924,635.21,634.03,1.05144248]
[1746810689471,0.26519924,635.94,634.03,1.05144248]
[1746810689667,0.27416902,635.2,634.03,1.05144248]
[1746810689870,2.0308231,635.88,634.03,1.05144248]
[1746810690372,0.26519924,635.87,634.03,1.05144248]
[1746810690575,0.26519924,635.86,634.03,1.05144248]
[1746810691074,0.26519924,635.85,634.03,1.05144248]
[1746810691273,0.53932939,635.85,634.03,1.05144248]
[1746810691471,0.26519924,635.84,634.03,1.05144248]
[1746810691668,0.31455443,635.82,634.03,1.05144248]
[1746810692073,2.34537753,635.82,634.03,1.05144248]
[1746810692369,0.26519924,635.81,634.03,1.05144248]
[1746810692869,0.26519924,635.8,634.03,1.05144248]
[1746810693269,0.31457422,635.78,634.03,1.05144248]
[1746810693673,0.26519924,635.77,634.03,1.05144248]
[1746810694070,0.26519924,635.76,634.03,1.05144248]
[1746810694275,0.26519924,635.75,634.03,1.05144248]
[1746810694574,0.31457422,635.78,634.03,1.05144248]
[1746810694875,0.26543194,635.77,634.03,1.05144248]
[1746810695174,0.26543194,635.76,634.03,1.05144248]
[1746810695372,0.26543194,635.75,634.03,1.05144248]
[1746810695777,0.26543194,635.74,634.03,1.05144248]
[1746810696075,0.26543194,635.73,634.03,1.05144248]
[1746810696477,0.26543194,635.72,634.03,1.05144248]
[1746810696676,0.26543194,635.71,634.03,1.05144248]
[1746810697177,0.26543194,635.7,634.03,1.05144248]
[1746810697778,0.26543194,635.69,634.03,1.05144248]
[1746810698182,0.26543194,635.68,634.03,1.05144248]
[1746810698574,0.26543194,635.67,634.03,1.05144248]
[1746810698879,0.26543194,635.66,634.03,1.05144248]
[1746810699178,0.26543194,635.65,634.03,1.05144248]
[1746810699478,0.26543194,635.64,634.03,1.05144248]
[1746810699779,0.26543194,635.63,634.03,1.05144248]
[1746810700179,0.26543194,635.62,634.03,1.05144248]
[1746810700579,0.26543194,635.61,634.03,1.05144248]
[1746810700881,0.31466331,635.6,634.03,1.05144248]
[1746810701079,2.0308231,635.56,634.03,1.05144248]
[1746810701477,0.58012,635.55,634.03,1.05144248]
[1746810701675,0.31469301,635.54,634.03,1.05144248]
[1746810702082,0.26554174,635.53,634.03,1.05144248]
[1746810702376,0.26554174,635.52,634.03,1.05144248]
[1746810702882,2.0308231,635.5,634.03,1.05144248]
[1746810703181,0.26554174,635.49,634.03,1.05144248]
[1746810703577,0.26554174,635.48,634.03,1.05144248]
[1746810703882,0.26554174,635.47,634.03,1.05144248]
[1746810704282,0.26554174,635.46,634.03,1.05144248]
[1746810704783,0.26554174,635.45,634.03,1.05144248]
[1746810705284,0.26554174,635.44,634.03,1.05144248]
[1746810705676,2.0308231,635.47,634.03,1.05144248]
[1746810705677,0.26554174,635.43,634.03,1.05144248]
[1746810706080,0.26554174,635.42,634.04,0.28961908]
[1746810706283,0.26554174,635.41,634.06,0.31542756]
[1746810706684,0.26554174,635.4,634.06,0.31542756]
[1746810706880,0.26554174,635.39,634.06,0.31542756]
[1746810707287,0.26554174,635.38,634.06,0.31542756]
[1746810707480,0.53967945,635.38,634.06,0.31542756]
[1746810707684,0.26554174,635.37,634.06,0.31542756]
[1746810707882,0.26554174,635.36,634.06,0.31542756]
[1746810708189,0.26554174,635.35,634.06,0.31542756]
[1746810708485,0.26554174,635.34,634.06,0.31542756]
[1746810708784,0.26554174,635.33,634.06,0.77842756]
[1746810708989,0.26554174,635.32,634.06,0.77842756]
[1746810709289,0.26554174,635.31,634.06,0.77842756]
[1746810709589,0.26554174,635.3,634.06,0.77842756]
[1746810709985,0.26554174,635.29,634.06,0.77842756]
[1746810710291,0.26554174,635.28,634.06,0.77842756]
[1746810710690,0.53967513,635.28,634.06,0.77842756]
[1746810711092,0.27413339,635.28,634.06,0.77842756]
[1746810711294,0.26554174,635.27,634.06,0.77842756]
[1746810713489,0.27412259,635.26,634.06,0.77842756]
[1746810713790,0.26554174,635.25,634.06,0.77842756]
[1746810714293,2.0308231,635.48,634.06,0.77842756]
[1746810714590,0.27410532,635.33,634.06,0.77842756]
[1746810714993,0.26549049,635.47,634.06,0.77842756]
[1746810715193,0.26549049,635.32,634.06,0.77842756]
[1746810715495,0.26549049,635.36,634.06,0.77842756]
[1746810715697,0.27409884,635.33,634.06,0.77842756]
[1746810716196,0.26549049,635.32,634.06,0.77842756]
[1746810716491,0.26549049,635.53,634.06,0.77842756]
[1746810717696,0.27409884,635.52,634.06,0.77842756]
[1746810718296,0.26549049,635.51,634.06,0.77842756]
[1746810719098,0.431,635.5,634.06,0.77842756]
[1746810719301,0.26549049,635.49,634.06,0.77842756]
[1746810719597,0.53959257,635.49,634.06,0.77842756]
[1746810720100,0.26549049,635.48,634.06,0.77842756]
[1746810720900,0.26549049,635.48,634.07,0.2895493]
[1746810721701,0.26549049,635.48,634.06,0.77842756]
[1746810727011,0.26549049,635.48,634.07,0.28951839]
[1746810728506,0.27408589,635.47,634.07,0.28951839]
[1746810728906,0.26549049,635.46,634.07,0.28951839]
[1746810729502,0.26549049,635.46,634.06,1.05251345]
[1746810730407,0.27408589,635.47,634.06,1.05251345]
[1746810730703,0.26548974,635.46,634.06,1.05251345]
[1746810731309,0.26548974,635.46,634.06,0.77842756]
[1746810731609,0.26548974,635.49,634.06,0.77842756]
[1746810731806,0.27411827,635.45,634.06,1.05254583]
[1746810732706,0.26547168,635.44,634.06,1.05254583]
[1746810735013,0.26547168,635.44,634.08,0.31541761]
[1746810736412,0.27411827,635.45,634.08,0.31541761]
[1746810736613,0.26551296,635.44,634.08,0.31541761]
[1746810737514,0.27411827,635.43,634.08,0.31541761]
[1746810738114,0.26551296,635.42,634.08,0.31541761]
[1746810739509,0.26551296,635.42,634.09,0.304]
[1746810739914,0.26551296,635.42,634.11,0.31540269]
[1746810740509,0.27411072,635.41,634.11,0.31540269]
[1746810740812,0.26551296,635.4,634.11,0.31540269]
[1746810741416,0.27411072,635.41,634.11,0.31540269]
[1746810741814,0.26550699,635.4,634.11,0.31540269]
[1746810743417,0.26550699,635.53,634.11,0.31540269]
[1746810743718,0.27411072,635.39,634.11,0.31540269]
[1746810744017,0.26550699,635.53,634.11,0.31540269]
[1746810744614,0.31469301,635.54,634.11,0.31540269]
[1746810745118,0.27409128,635.53,634.11,0.31540269]
[1746810745319,0.53959342,635.53,634.11,0.31540269]
[1746810745718,0.26550214,635.52,634.11,0.31540269]
[1746810749015,0.26550214,635.51,634.11,0.31540269]
[1746810749518,0.26550214,635.5,634.11,0.31540269]
[1746810749820,0.26550214,635.49,634.11,0.31540269]
[1746810750119,0.26550214,635.48,634.11,0.31540269]
[1746810750418,0.26550214,635.47,634.11,0.31540269]
[1746810750918,0.26550214,635.49,634.11,0.31540269]
[1746810751320,0.26550214,635.48,634.11,0.31540269]
[1746810751615,0.27412691,635.5,634.11,0.31540269]
[1746810751616,0.26550214,635.47,634.11,0.31540269]
[1746810752220,0.26550214,635.49,634.11,0.31540269]
[1746810752519,0.27412691,635.46,634.11,0.31540269]
[1746810752918,0.26550214,635.45,634.11,0.31540269]
[1746810755920,0.26550214,635.45,634.12,0.369]
[1746810758224,0.26550214,635.45,634.13,0.328]
[1746810758624,0.27410856,635.44,634.13,0.328]
[1746810759028,0.26550214,635.43,634.13,0.328]
[1746810759326,0.26550214,635.53,634.13,0.328]
[1746810760228,0.27410748,635.52,634.13,0.328]
[1746810760427,0.27410748,635.52,634.14,0.31538776]
[1746810760622,0.26550214,635.51,634.14,0.31538776]
[1746810761531,0.27412367,635.5,634.14,0.31538776]
[1746810761726,0.26550214,635.49,634.14,0.31538776]
[1746810764534,0.27412367,635.48,634.14,0.31538776]
[1746810765035,0.26550214,635.47,634.14,0.31538776]
[1746810767437,0.26550214,635.53,634.14,0.31538776]
[1746810767734,0.27412367,635.46,634.14,0.31538776]
[1746810768136,0.26550214,635.45,634.14,0.31538776]
[1746810773743,0.27411719,635.44,634.14,0.31538776]
[1746810774637,0.26550214,635.43,634.14,0.31538776]
[1746810775238,0.489,635.42,634.14,0.31538776]
[1746810775639,0.26550214,635.41,634.14,0.31538776]
[1746810776635,0.27413015,635.4,634.14,0.31538776]
[1746810776939,0.26550214,635.39,634.14,0.31538776]
[1746810779440,0.26550214,635.41,634.14,0.31538776]
[1746810779741,0.27413015,635.38,634.14,0.31538776]
[1746810780040,0.26550214,635.37,634.14,0.31538776]
[1746810782540,0.27413015,635.36,634.14,0.31538776]
[1746810783045,0.26550214,635.35,634.14,0.31538776]
[1746810783642,0.26550214,635.35,634.15,0.354]
[1746810783843,0.26550214,635.35,634.16,0.31537782]
[1746810785541,0.26550214,635.41,634.16,0.31537782]
[1746810785742,0.27414095,635.34,634.16,0.31537782]
[1746810785942,0.26550214,635.33,634.16,0.31537782]
[1746810786543,0.26550214,635.33,634.16,0.60637782]
[1746810786743,0.27414095,635.34,634.16,0.60637782]
[1746810786941,0.2655199,635.33,634.16,0.60637782]
[1746810788146,0.2655199,635.32,634.16,0.60637782]
[1746810788440,0.27414095,635.34,634.16,0.60637782]
[1746810788844,0.26547813,635.33,634.16,0.60637782]
[1746810791746,0.27417874,635.32,634.16,0.60637782]
[1746810792248,0.26547813,635.31,634.16,0.60637782]
[1746810794550,0.27417874,635.3,634.16,0.60637782]
[1746810794849,0.26547813,635.29,634.16,0.60637782]
[1746810797647,0.27417874,635.28,634.16,0.60637782]
[1746810798052,0.26547813,635.27,634.16,0.60637782]
[1746810800556,0.2741593,635.26,634.16,0.60637782]
[1746810801055,0.26547813,635.25,634.16,0.60637782]
[1746810802156,0.2741593,635.26,634.16,0.60637782]
[1746810802454,0.26576221,635.25,634.16,0.60637782]
[1746810803654,0.2741593,635.24,634.16,0.60637782]
[1746810803855,0.26576221,635.23,634.16,0.60637782]
[1746810806658,0.27414635,635.22,634.16,0.60637782]
[1746810807056,0.26576221,635.21,634.16,0.60637782]
[1746810808258,0.476,635.2,634.16,0.60637782]
[1746810808758,0.26576221,635.19,634.16,0.60637782]
[1746810809657,0.27418306,635.18,634.16,0.60637782]
[1746810809960,0.26576221,635.17,634.16,0.60637782]
[1746810811757,0.26576221,635.17,634.16,0.91037782]
[1746810812763,0.27418306,635.16,634.16,0.91037782]
[1746810813164,0.26576221,635.15,634.16,0.91037782]
[1746810815461,0.26576221,635.19,634.16,0.91037782]
[1746810815666,0.27418306,635.14,634.16,0.91037782]
[1746810816162,0.26576221,635.13,634.16,0.91037782]
[1746810818568,0.27418306,635.12,634.16,0.91037782]
[1746810818866,0.26576221,635.11,634.16,0.91037782]
[1746810821568,0.27418306,635.1,634.16,0.91037782]
[1746810821969,0.26576221,635.09,634.16,0.91037782]
[1746810824564,0.27418306,635.08,634.16,0.91037782]
[1746810824767,0.26576221,635.07,634.16,0.91037782]
[1746810827571,0.27418306,635.06,634.16,0.91037782]
[1746810828073,0.26576221,635.05,634.16,0.91037782]
[1746810830673,0.27418306,635.04,634.16,0.91037782]
[1746810831473,0.26576221,635.03,634.16,0.91037782]
[1746810833774,0.27416254,635.03,634.16,0.91037782]
[1746810834172,0.26576221,635.02,634.16,0.91037782]
[1746810834369,0.75376221,635.02,634.16,0.91037782]
[1746810834872,0.26576221,635.01,634.16,0.91037782]
[1746810843482,0.488,635.02,634.16,0.91037782]
[1746810843781,0.26599904,635.01,634.16,0.91037782]
[1746810853986,0.488,635.02,634.16,0.91037782]
[1746810854484,0.266018,635.01,634.16,0.91037782]
[1746810854684,0.54023671,635.01,634.16,0.91037782]
[1746810855085,0.266018,635.0,634.16,0.91037782]
[1746810857587,0.27417658,634.99,634.16,0.91037782]
[1746810857883,0.866018,634.98,634.16,0.91037782]
[1746810858081,0.266018,634.97,634.16,0.91037782]
[1746810859090,0.6,634.98,634.16,0.91037782]
[1746810859282,0.26609309,634.97,634.16,0.91037782]
[1746810859884,0.6,634.98,634.16,0.91037782]
[1746810860184,0.26609119,634.97,634.16,0.91037782]
[1746810860589,0.54033259,634.97,634.16,0.91037782]
[1746810860889,0.26609119,634.96,634.16,0.91037782]
[1746810866593,0.27425005,634.95,634.16,0.91037782]
[1746810866893,0.26609119,634.94,634.16,0.91037782]
[1746810867895,0.26609119,634.94,634.16,0.595]
[1746810869595,0.27426734,634.93,634.16,0.595]
[1746810869994,0.26609119,634.92,634.16,0.595]
[1746810878903,0.27426734,634.93,634.16,0.595]
[1746810879200,0.26593007,634.92,634.16,0.595]
[1746810881104,0.489,634.91,634.16,0.595]
[1746810881503,0.26592524,634.9,634.16,0.595]
[1746810881806,0.54011263,634.9,634.16,0.595]
[1746810882807,0.26592524,634.89,634.16,0.595]
[1746810883606,0.27418739,634.9,634.16,0.595]
[1746810884008,0.2659624,634.89,634.16,0.595]
[1746810884610,0.54021785,634.89,634.16,0.595]
[1746810884809,0.27425545,634.89,634.16,0.595]
[1746810885309,0.26597268,634.88,634.16,0.595]
[1746810887612,0.27425545,634.87,634.16,0.595]
[1746810888007,0.26597268,634.86,634.16,0.595]
[1746810890613,0.27425545,634.85,634.16,0.595]
[1746810891214,0.26597268,634.84,634.16,0.595]
[1746810893613,0.26597268,634.9,634.16,0.595]
[1746810893816,0.27425545,634.84,634.16,0.595]
[1746810894316,0.26597268,634.83,634.16,0.595]
[1746810896514,0.26597268,634.9,634.16,0.595]
[1746810896714,0.27427491,634.82,634.16,0.595]
[1746810897015,0.26597268,634.9,634.16,0.595]
[1746810897215,0.54024759,634.81,634.16,0.595]
[1746810897515,0.26597268,634.8,634.16,0.595]
[1746810897818,0.27423492,634.8,634.16,0.595]
[1746810898118,0.26597268,634.79,634.16,0.595]
[1746810899816,0.26597268,634.83,634.16,0.595]
[1746810900118,0.27419603,634.84,634.16,0.595]
[1746810900417,0.26608528,634.83,634.16,0.595]
[1746810900919,0.89808528,634.83,634.16,0.595]
[1746810901420,0.26608528,634.82,634.16,0.595]
[1746810911625,0.27428355,634.81,634.16,0.595]
[1746810911924,0.26608528,634.8,634.16,0.595]
[1746810914828,0.27428355,634.79,634.16,0.595]
[1746810915127,0.26608528,634.78,634.16,0.595]
[1746810915722,0.27428355,634.79,634.16,0.595]
[1746810916128,0.26614497,634.78,634.16,0.595]
[1746810916423,0.26614497,634.78,634.16,0.304]
[1746810916823,0.632,634.83,634.16,0.304]
[1746810917123,0.2661275,634.82,634.16,0.304]
[1746810918527,0.2661275,634.84,634.16,0.304]
[1746810918729,0.27440034,634.85,634.16,0.304]
[1746810919124,0.26610653,634.84,634.16,0.304]
[1746810919927,0.26610653,634.84,633.14,0.374]
[1746810920122,0.26610653,634.84,633.16,0.31587592]
[1746810920527,0.26610653,634.84,633.17,0.28975196]
[1746810920723,0.26610653,634.84,633.17,0.56403443]
[1746810920927,0.26610653,635.53,633.18,0.28975196]
[1746810921730,0.70524681,635.52,633.18,0.28975196]
[1746810922332,0.26610653,635.51,633.18,0.28975196]
[1746810922534,0.26610653,635.51,633.18,0.75275196]
[1746810923028,0.70524681,635.52,633.18,0.463]
[1746810923329,0.2660147,635.51,633.19,0.28967067]
[1746810923730,0.27424897,635.51,633.18,0.463]
[1746810923931,0.26601065,635.5,633.19,0.2896666]
[1746810924832,0.26601065,635.5,633.2,0.2896666]
[1746810925234,0.26601065,635.5,633.21,0.2896666]
[1746810926233,0.26601065,635.49,633.22,0.2896666]
[1746810926528,0.26601065,635.48,633.23,0.2896666]
[1746810926730,0.27424897,635.51,633.18,0.463]
[1746810927033,0.26601982,635.5,633.19,0.2896757]
[1746810927333,0.26601982,635.49,633.2,0.2896757]
[1746810927627,0.26601982,635.48,633.21,0.2896757]
[1746810928129,0.26601982,635.47,633.22,0.2896757]
[1746810928333,0.26601982,635.47,633.18,0.463]
[1746810928334,0.26601982,635.46,633.23,0.2896757]
[1746810928730,0.26601982,635.45,633.24,0.2896757]
[1746810929030,0.26601982,635.44,633.25,0.2896757]
[1746810929435,0.26601982,635.43,633.26,0.2896757]
[1746810929633,0.26601982,635.42,633.27,0.2896757]
[1746810929934,0.26601982,635.41,633.28,0.2896757]
[1746810930233,0.26601982,635.4,633.29,0.2896757]
[1746810930734,0.26601982,635.39,633.3,0.2896757]
[1746810930934,0.26601982,635.39,633.22,0.99497732]
[1746810931134,0.27424789,635.42,633.22,0.99497732]
[1746810931335,0.26601754,635.38,633.23,0.28967349]
[1746810931735,0.26601754,635.41,633.24,0.28967349]
[1746810932029,0.26601754,635.41,633.34,0.31578614]
[1746810932534,0.26601754,635.41,633.35,0.28967349]
[1746810932934,0.26601754,635.51,633.35,0.28967349]
[1746810933135,0.26601754,635.51,633.45,0.31573131]
[1746810933331,0.58073036,635.5,633.45,0.31573131]
[1746810933634,0.58073531,635.49,633.46,0.28967349]
[1746810934035,0.26601754,635.48,633.46,0.28967349]
[1746810934334,0.26601754,635.47,633.46,0.28967349]
[1746810934630,0.26601754,635.46,633.46,0.28967349]
[1746810935034,0.26601754,635.45,633.46,0.28967349]
[1746810935235,0.26601754,635.45,633.48,0.31571636]
[1746810935534,0.58076008,635.44,633.48,0.31571636]
[1746810935734,0.26601754,635.43,633.49,0.28967349]
[1746810935935,0.26601754,635.43,633.51,0.3157014]
[1746810936435,0.26601754,635.43,633.52,0.28967349]
[1746810936935,0.26601754,635.43,633.52,0.65267349]
[1746810937239,0.26601754,635.43,633.53,0.28967349]
[1746810938036,0.26601754,635.42,633.53,0.28967349]
[1746810938535,0.26601754,635.43,633.53,0.28967349]
[1746810938738,0.27421979,635.41,633.53,0.28967349]
[1746810939238,0.26601754,635.4,633.53,0.61867349]
[1746810939538,0.26601754,635.4,633.54,0.28967349]
[1746810939837,0.26601754,635.4,633.56,0.31567649]
[1746810940338,0.26601754,635.39,633.57,0.28967349]
[1746810940741,0.26601754,635.38,633.57,0.28967349]
[1746810941243,0.26601754,635.4,633.57,0.28967349]
[1746810941538,0.26601754,635.39,633.59,0.31566154]
[1746810941737,0.54022653,635.39,633.59,0.31566154]
[1746810941939,0.26601754,635.38,633.6,0.28967349]
[1746810942144,0.27420899,635.39,633.59,0.31566154]
[1746810942444,0.26598866,635.38,633.6,0.28964449]
[1746810943543,0.26598866,635.38,633.62,0.3156466]
[1746810944044,0.26598866,635.37,633.63,0.28964449]
[1746810944245,0.26598866,635.37,633.65,0.31563165]
[1746810944543,0.26598866,635.36,633.65,0.31563165]
[1746810944745,0.27419711,635.36,633.65,0.31563165]
[1746810945043,0.27419711,635.36,633.66,0.28964449]
[1746810945247,0.27419711,635.36,633.68,0.31561671]
[1746810945544,0.26598866,635.35,633.68,0.31561671]
[1746810946045,0.26598866,635.35,633.69,0.28964449]
[1746810946246,0.26598866,635.35,633.71,0.31560177]
[1746810946740,0.26598866,635.35,633.72,0.28964449]
[1746810947045,0.26598866,635.35,633.74,0.31558683]
[1746810947239,0.26598866,635.35,633.75,0.28964449]
[1746810947445,0.26598866,635.35,633.77,0.31557189]
[1746810947643,0.27418522,635.34,633.77,0.31557189]
[1746810947943,0.26598866,635.33,633.78,0.28964449]
[1746810948639,0.26598866,635.32,633.78,0.28964449]
[1746810949045,0.26598866,635.31,633.78,0.28964449]
[1746810949547,0.429,635.3,633.78,0.28964449]
[1746810949841,0.26598866,635.29,633.78,0.28964449]
[1746810950642,0.27419063,635.28,633.78,0.28964449]
[1746810950945,0.26598866,635.27,633.78,0.28964449]
[1746810953651,0.27418414,635.26,633.78,0.28964449]
[1746810954151,0.26598866,635.25,633.78,0.28964449]
[1746810955254,0.26598866,635.25,633.78,0.69164449]
[1746810955447,0.27418414,635.26,633.78,0.69164449]
[1746810955448,0.27418414,635.26,633.78,0.402]
[1746810955755,0.27418414,635.26,633.8,0.31555695]
[1746810955955,0.26590208,635.25,633.81,0.28962419]
[1746810956554,0.26590208,635.25,633.83,0.31554202]
[1746810956753,0.2741809,635.24,633.84,0.28962419]
[1746810957057,0.2741809,635.24,633.86,0.31552708]
[1746810957457,0.26590208,635.23,633.86,0.31552708]
[1746810957657,0.26590208,635.23,633.87,0.444]
[1746810959157,0.26590208,635.23,633.89,0.31551215]
[1746810959550,0.26590208,635.29,633.89,0.31551215]
[1746810959952,0.27417334,635.22,633.89,0.31551215]
[1746810960256,0.26590208,635.21,633.89,0.31551215]
[1746810962658,0.27417334,635.2,633.89,0.31551215]
[1746810963158,0.26590208,635.19,633.89,0.31551215]
[1746810964559,0.26590208,635.19,633.9,0.2896244]
[1746810964860,0.27417334,635.2,633.92,0.31549722]
[1746810965257,0.26576675,635.19,633.92,0.31549722]
[1746810965658,0.26576675,635.19,633.93,0.28960717]
[1746810968663,0.27415066,635.18,633.93,0.28960717]
[1746810969063,0.26576675,635.17,633.93,0.28960717]
[1746810970063,0.26576675,635.17,633.92,0.31549722]
[1746810970465,0.26576675,635.18,633.92,0.31549722]
[1746810970663,0.435,635.19,633.92,0.31549722]
[1746810973068,0.26584973,635.18,633.92,0.31549722]
[1746810973464,0.435,635.19,633.92,0.31549722]
[1746810977769,0.26579032,635.18,633.93,0.28955456]
[1746810978070,0.435,635.19,633.93,0.28955456]
[1746810978970,0.26588829,635.18,633.93,0.28955456]
[1746810979270,0.26588829,635.18,633.93,0.67755456]
[1746810979667,0.26588829,635.18,633.94,0.28955456]
[1746810980471,0.435,635.19,633.94,0.28955456]
[1746810982168,0.26583783,635.18,633.95,0.28955456]
[1746810982573,0.26583783,635.18,633.96,0.28955456]
[1746810982773,0.435,635.19,633.93,0.388]
[1746810983668,0.26583245,635.18,633.94,0.28948736]
[1746810983874,0.26583245,635.18,633.93,0.388]
[1746810984068,0.435,635.19,633.93,0.388]
[1746810984470,0.26583337,635.18,633.94,0.28948827]
[1746810985174,0.435,635.19,633.94,0.28948827]
[1746810986074,0.435,635.19,633.95,0.4]
[1746810986378,0.435,635.19,633.96,0.28948827]
[1746810993976,0.435,635.19,633.95,0.67409128]
[1746811000382,0.435,635.19,633.97,0.31547234]
[1746811000781,0.435,635.19,633.98,0.28949906]
[1746811000985,0.435,635.19,634.0,0.31545741]
[1746811001386,0.435,635.19,634.01,0.28949906]
[1746811001686,0.435,635.19,634.03,0.31544248]
[1746811002486,0.435,635.19,634.04,0.28949715]
[1746811002686,0.435,635.19,634.06,0.31542756]
[1746811003084,0.435,635.19,634.07,0.28949715]
[1746811003389,0.435,635.19,634.09,0.31541263]
[1746811004187,0.435,635.19,634.1,0.28949715]
[1746811004490,0.435,635.19,634.12,0.31539771]
[1746811004786,0.435,635.19,634.13,0.28949715]
[1746811005087,0.435,635.19,634.15,0.31538279]
[1746811005487,0.435,635.19,634.16,0.28949715]
[1746811006187,0.435,635.19,634.18,0.31536787]
[1746811006387,0.435,635.19,634.19,0.28949715]
[1746811006784,0.435,635.19,634.21,0.31535295]
[1746811009192,0.435,635.19,634.22,0.28949261]
[1746811009594,0.435,635.19,634.21,0.31535295]
[1746811009793,0.435,635.19,634.23,0.472]
[1746811009992,0.435,635.19,634.25,0.31533307]
[1746811012895,0.435,635.19,634.26,0.379]
[1746811013097,0.435,635.19,634.28,0.31531815]
[1746811021303,0.435,635.19,634.29,0.28937295]
[1746811037612,0.27389713,635.93,634.29,0.28937295]
[1746811037915,0.26562211,635.92,634.29,0.28937295]
[1746811040811,0.27373232,635.91,634.29,0.28937295]
[1746811041313,0.26562211,635.9,634.29,0.28937295]
[1746811042816,0.26562211,635.9,634.3,0.28937295]
[1746811043216,0.26562211,635.9,634.31,0.28937295]
[1746811043617,0.26562211,635.9,634.29,0.28937295]
[1746811043819,0.27390683,635.89,634.29,0.56327978]
[1746811044018,0.27390683,635.89,634.3,0.28937295]
[1746811044318,0.26562211,635.88,634.3,0.28937295]
[1746811044713,0.26562211,635.88,634.3,0.72737295]
[1746811045220,0.26562211,635.88,634.31,0.28937295]
[1746811047220,0.27388743,635.93,634.31,0.28937295]
[1746811047518,0.26562211,635.92,634.31,0.28937295]
[1746811047721,0.27388743,635.93,634.31,0.28937295]
[1746811051224,0.27388743,635.93,634.31,0.66237295]
[1746811051423,0.27388743,635.93,634.32,0.28937295]
[1746811052419,0.583,636.0,634.32,0.28937295]
[1746811052825,0.27387989,635.96,634.34,0.31528833]
[1746811053523,0.27387989,635.96,634.35,0.28922883]
[1746811053723,0.27387989,635.96,634.37,0.31527342]
[1746811054128,0.27387989,635.96,634.38,0.28922883]
[1746811054330,0.27387989,635.96,634.4,0.31525851]
[1746811054724,0.27387989,635.96,634.41,0.28922883]
[1746811054924,0.27387989,635.96,634.43,0.3152436]
[1746811055427,0.583,636.0,634.43,0.3152436]
[1746811055928,0.27387019,635.99,634.43,0.3152436]
[1746811056729,0.27387019,635.99,634.44,0.28922626]
[1746811057428,0.27387019,635.99,634.46,0.31522869]
[1746811058132,0.27387019,635.99,634.47,0.28922626]
[1746811058330,0.27387019,635.99,634.49,0.31521379]
[1746811058531,2.0308231,637.67,634.49,0.31521379]
[1746811058724,2.0308231,637.19,634.5,0.28922626]
[1746811059128,0.26557349,637.18,634.52,0.31519889]
[1746811059427,0.26557349,637.17,634.53,0.28922626]
[1746811059631,0.31394709,637.05,634.53,0.28922626]
[1746811059829,0.31394709,637.05,634.55,0.31518398]
[1746811060231,0.26557349,637.04,634.56,0.28922626]
[1746811060432,0.31401117,636.92,634.58,0.31516908]
[1746811061031,0.26557349,636.91,634.58,0.31516908]
[1746811061732,0.26557349,636.9,634.58,0.31516908]
[1746811062031,0.26557349,636.89,634.58,0.31516908]
[1746811062426,0.26557349,636.88,634.58,0.31516908]
[1746811062726,0.26557349,636.87,634.58,0.31516908]
[1746811063133,0.26557349,636.86,634.58,0.31516908]
[1746811063532,0.26557349,636.89,634.58,0.31516908]
[1746811064027,0.26557349,636.88,634.58,0.31516908]
[1746811064333,0.26557349,636.87,634.58,0.31516908]
[1746811064726,0.31401117,636.92,634.58,0.31516908]
[1746811064727,0.53934565,636.86,634.58,0.31516908]
[1746811065032,0.26557349,636.85,634.58,0.31516908]
[1746811065428,0.26557349,636.84,634.58,0.31516908]
[1746811065733,0.26557349,636.84,634.59,0.336]
[1746811065927,0.26557349,636.83,634.59,0.336]
[1746811066232,0.26557349,636.82,634.59,0.336]
[1746811066532,0.26557349,636.81,634.59,0.336]